[Event "Titled Tuesday Blitz January 25 2022"]
[White "Sapunov, Evgeny"]
[Black "Saravana, Krishnan P."]
[WhiteFideId "4126661"]
[BlackFideId "5018382"]
[WhiteElo "2470"]
[BlackElo "2210"]
[Result "1-0"]
[Round "05"]
[TimeControl "180+1"]
[Date "2022.01.26"]
[WhiteClock "0:00:20"]
[BlackClock "0:00:01"]

1. c4 {[%clk 0:03:00]}  e5 {[%clk 0:02:59]} 2. Nf3 {[%clk 0:03:00]}  Nc6 {[%clk 0:02:56]} 3. Nc3 {[%clk 0:02:58]}  Nf6 {[%clk 0:02:56]} 4. e3 {[%clk 0:02:59]}  Bb4 {[%clk 0:02:52]} 5. Qc2 {[%clk 0:02:58]}  Bxc3 {[%clk 0:02:50]} 6. Qxc3 {[%clk 0:02:59]}  d6 {[%clk 0:02:49]} 7. a3 {[%clk 0:02:59]}  O-O {[%clk 0:02:49]} 8. b4 {[%clk 0:02:59]}  Qe7 {[%clk 0:02:48]} 9. Bb2 {[%clk 0:02:59]}  Ne4 {[%clk 0:02:48]} 10. Qc2 {[%clk 0:02:59]}  f5 {[%clk 0:02:48]} 11. Be2 {[%clk 0:02:58]}  a5 {[%clk 0:02:46]} 12. b5 {[%clk 0:02:56]}  Nd8 {[%clk 0:02:46]} 13. O-O {[%clk 0:02:55]}  Nf7 {[%clk 0:02:45]} 14. d4 {[%clk 0:02:55]}  Nf6 {[%clk 0:02:35]} 15. dxe5 {[%clk 0:02:54]}  dxe5 {[%clk 0:02:35]} 16. c5 {[%clk 0:02:54]}  c6 {[%clk 0:02:26]} 17. a4 {[%clk 0:02:51]}  Re8 {[%clk 0:02:22]} 18. Rfd1 {[%clk 0:02:40]}  Nd5 {[%clk 0:02:08]} 19. Rac1 {[%clk 0:02:34]}  Nb4 {[%clk 0:02:02]} 20. Qb3 {[%clk 0:02:30]}  Be6 {[%clk 0:02:01]} 21. Bc4 {[%clk 0:02:31]}  Bd5 {[%clk 0:01:34]} 22. Bc3 {[%clk 0:02:13]}  Bxc4 {[%clk 0:01:32]} 23. Qxc4 {[%clk 0:02:11]}  Nd5 {[%clk 0:01:32]} 24. Ba1 {[%clk 0:02:07]}  Rad8 {[%clk 0:01:26]} 25. e4 {[%clk 0:02:07]}  fxe4 {[%clk 0:01:16]} 26. Qxe4 {[%clk 0:02:07]}  Nf6 {[%clk 0:01:16]} 27. Qc4 {[%clk 0:02:06]}  Rd5 {[%clk 0:01:14]} 28. Rxd5 {[%clk 0:02:03]}  cxd5 {[%clk 0:01:09]} 29. Qc3 {[%clk 0:02:02]}  d4 {[%clk 0:01:04]} 30. Qxa5 {[%clk 0:02:01]}  d3 {[%clk 0:00:58]} 31. Qc3 {[%clk 0:01:57]}  e4 {[%clk 0:00:57]} 32. Re1 {[%clk 0:01:51]}  Rc8 {[%clk 0:00:50]} 33. Nd2 {[%clk 0:01:41]}  Rxc5 {[%clk 0:00:48]} 34. Qd4 {[%clk 0:01:40]}  Rd5 {[%clk 0:00:45]} 35. Qc4 {[%clk 0:01:39]}  Rc5 {[%clk 0:00:36]} 36. Qb3 {[%clk 0:01:39]}  Kh8 {[%clk 0:00:20]} 37. h3 {[%clk 0:01:36]}  Nd6 {[%clk 0:00:19]} 38. Qb4 {[%clk 0:01:16]}  Nf5 {[%clk 0:00:13]} 39. Bxf6 {[%clk 0:01:13]}  gxf6 {[%clk 0:00:13]} 40. Nxe4 {[%clk 0:01:10]}  Re5 {[%clk 0:00:10]} 41. Qxe7 {[%clk 0:01:10]}  Rxe7 {[%clk 0:00:10]} 42. f3 {[%clk 0:01:11]}  Nd4 {[%clk 0:00:09]} 43. Rd1 {[%clk 0:01:09]}  f5 {[%clk 0:00:09]} 44. Nc5 {[%clk 0:01:06]}  Rc7 {[%clk 0:00:08]} 45. Nxd3 {[%clk 0:01:06]}  Rc2 {[%clk 0:00:08]} 46. Nf4 {[%clk 0:01:05]}  Rc4 {[%clk 0:00:05]} 47. a5 {[%clk 0:00:43]}  Nxb5 {[%clk 0:00:04]} 48. Rd8+ {[%clk 0:00:42]}  Kg7 {[%clk 0:00:04]} 49. Rd7+ {[%clk 0:00:41]}  Kf6 {[%clk 0:00:04]} 50. Rxb7 {[%clk 0:00:42]}  Nd6 {[%clk 0:00:02]} 51. Rb6 {[%clk 0:00:41]}  Ke5 {[%clk 0:00:02]} 52. Nd3+ {[%clk 0:00:41]}  Kd5 {[%clk 0:00:02]} 53. a6 {[%clk 0:00:40]}  Ra4 {[%clk 0:00:02]} 54. Nb4+ {[%clk 0:00:34]}  Kc5 {[%clk 0:00:03]} 55. Rc6+ {[%clk 0:00:35]}  Kb5 {[%clk 0:00:02]} 56. Rxd6 {[%clk 0:00:36]}  Kxb4 {[%clk 0:00:02]} 57. Rf6 {[%clk 0:00:35]}  Ra5 {[%clk 0:00:01]} 58. f4 {[%clk 0:00:33]}  Kc4 {[%clk 0:00:01]} 59. Kf2 {[%clk 0:00:33]}  Kd4 {[%clk 0:00:02]} 60. Kg3 {[%clk 0:00:32]}  Ra3+ {[%clk 0:00:03]} 61. Kh4 {[%clk 0:00:32]}  Ke4 {[%clk 0:00:03]} 62. g3 {[%clk 0:00:32]}  Ra5 {[%clk 0:00:03]} 63. Rb6 {[%clk 0:00:29]}  Kf3 {[%clk 0:00:01]} 64. Rb3+ {[%clk 0:00:26]}  Ke4 {[%clk 0:00:02]} 65. Rb6 {[%clk 0:00:24]}  Kf3 {[%clk 0:00:02]} 66. Re6 {[%clk 0:00:23]}  Ra4 {[%clk 0:00:01]} 67. Rf6 {[%clk 0:00:23]}  Ke4 {[%clk 0:00:01]} 68. Rh6 {[%clk 0:00:20]} 1-0


[Site "https://www.chess.com"]

[Event "Titled Tuesday Blitz January 25 2022"]
[White "Seo, Jung Min"]
[Black "Galyas, Miklos"]
[WhiteFideId "1734687"]
[BlackFideId "707244"]
[WhiteElo "2401"]
[BlackElo "2409"]
[Result "1-0"]
[Round "05"]
[TimeControl "180+1"]
[Date "2022.01.26"]
[WhiteClock "0:00:12"]
[BlackClock "0:00:06"]

1. e4 {[%clk 0:03:00]}  d5 {[%clk 0:02:57]} 2. Nc3 {[%clk 0:02:59]}  dxe4 {[%clk 0:02:55]} 3. Nxe4 {[%clk 0:02:59]}  Nd7 {[%clk 0:02:55]} 4. d4 {[%clk 0:02:58]}  Ngf6 {[%clk 0:02:55]} 5. Ng3 {[%clk 0:02:57]}  e6 {[%clk 0:02:54]} 6. Nf3 {[%clk 0:02:56]}  b6 {[%clk 0:02:54]} 7. Bd3 {[%clk 0:02:52]}  Bb7 {[%clk 0:02:54]} 8. Qe2 {[%clk 0:02:45]}  Be7 {[%clk 0:02:53]} 9. O-O {[%clk 0:02:41]}  O-O {[%clk 0:02:53]} 10. b3 {[%clk 0:02:38]}  c5 {[%clk 0:02:52]} 11. Bb2 {[%clk 0:02:38]}  cxd4 {[%clk 0:02:51]} 12. Nxd4 {[%clk 0:02:32]}  Nc5 {[%clk 0:02:51]} 13. Bb5 {[%clk 0:02:30]}  Qc7 {[%clk 0:02:49]} 14. a4 {[%clk 0:02:21]}  Rad8 {[%clk 0:02:48]} 15. Rad1 {[%clk 0:02:19]}  Nce4 {[%clk 0:02:44]} 16. Nxe4 {[%clk 0:02:18]}  Nxe4 {[%clk 0:02:44]} 17. Bc4 {[%clk 0:02:16]}  Bf6 {[%clk 0:02:39]} 18. Nb5 {[%clk 0:02:00]}  Qb8 {[%clk 0:02:33]} 19. Bxf6 {[%clk 0:01:59]}  Nxf6 {[%clk 0:02:31]} 20. Rxd8 {[%clk 0:01:57]}  Rxd8 {[%clk 0:02:30]} 21. Rd1 {[%clk 0:01:57]}  a6 {[%clk 0:02:14]} 22. Nc3 {[%clk 0:01:56]}  Rxd1+ {[%clk 0:02:04]} 23. Qxd1 {[%clk 0:01:56]}  h5 {[%clk 0:02:01]} 24. h3 {[%clk 0:01:55]}  Qe5 {[%clk 0:01:58]} 25. Qd8+ {[%clk 0:01:49]}  Kh7 {[%clk 0:01:57]} 26. Qxb6 {[%clk 0:01:31]}  Bxg2 {[%clk 0:01:44]} 27. Qe3 {[%clk 0:01:25]}  Qxe3 {[%clk 0:01:32]} 28. fxe3 {[%clk 0:01:24]}  Bb7 {[%clk 0:01:31]} 29. a5 {[%clk 0:01:23]}  Nd7 {[%clk 0:01:29]} 30. Bd3+ {[%clk 0:01:11]}  f5 {[%clk 0:01:28]} 31. Na4 {[%clk 0:01:10]}  g5 {[%clk 0:01:25]} 32. b4 {[%clk 0:01:08]}  Kg7 {[%clk 0:01:15]} 33. c4 {[%clk 0:01:08]}  g4 {[%clk 0:01:14]} 34. Bf1 {[%clk 0:00:48]}  Ne5 {[%clk 0:01:13]} 35. Nc5 {[%clk 0:00:43]}  Ba8 {[%clk 0:00:54]} 36. Nxa6 {[%clk 0:00:37]}  Nf3+ {[%clk 0:00:52]} 37. Kf2 {[%clk 0:00:36]}  h4 {[%clk 0:00:52]} 38. Nc7 {[%clk 0:00:26]}  g3+ {[%clk 0:00:52]} 39. Ke2 {[%clk 0:00:25]}  Ng1+ {[%clk 0:00:45]} 40. Ke1 {[%clk 0:00:21]}  Nf3+ {[%clk 0:00:39]} 41. Kd1 {[%clk 0:00:21]}  Be4 {[%clk 0:00:24]} 42. Nxe6+ {[%clk 0:00:20]}  Kf6 {[%clk 0:00:23]} 43. Nf4 {[%clk 0:00:20]}  Ng5 {[%clk 0:00:20]} 44. b5 {[%clk 0:00:19]}  Ke5 {[%clk 0:00:19]} 45. a6 {[%clk 0:00:19]}  Kd6 {[%clk 0:00:20]} 46. b6 {[%clk 0:00:19]}  Kc6 {[%clk 0:00:19]} 47. c5 {[%clk 0:00:19]}  Nf3 {[%clk 0:00:12]} 48. Bg2 {[%clk 0:00:17]}  Ne5 {[%clk 0:00:10]} 49. Bxe4+ {[%clk 0:00:17]}  fxe4 {[%clk 0:00:10]} 50. a7 {[%clk 0:00:17]}  Kb7 {[%clk 0:00:09]} 51. Ke2 {[%clk 0:00:16]}  Nc6 {[%clk 0:00:07]} 52. Ne6 {[%clk 0:00:13]}  Ne5 {[%clk 0:00:06]} 53. Nd8+ {[%clk 0:00:13]}  Ka8 {[%clk 0:00:06]} 54. c6 {[%clk 0:00:12]}  g2 {[%clk 0:00:06]} 55. Kf2 {[%clk 0:00:12]} 1-0


[Site "https://www.chess.com"]

[Event "Titled Tuesday Blitz January 25 2022"]
[White "Siva Mahadevan"]
[Black "Jaracz, Pawel"]
[WhiteFideId "25043153"]
[BlackFideId "1102222"]
[WhiteElo "2203"]
[BlackElo "2429"]
[Result "0-1"]
[Round "05"]
[TimeControl "180+1"]
[Date "2022.01.26"]
[WhiteClock "0:00:09"]
[BlackClock "0:00:06"]

1. e4 {[%clk 0:02:59]}  c5 {[%clk 0:02:59]} 2. Nf3 {[%clk 0:02:59]}  e6 {[%clk 0:02:59]} 3. d4 {[%clk 0:03:00]}  cxd4 {[%clk 0:02:59]} 4. Nxd4 {[%clk 0:03:01]}  Nc6 {[%clk 0:02:59]} 5. Nc3 {[%clk 0:03:01]}  Qc7 {[%clk 0:03:00]} 6. Be2 {[%clk 0:03:01]}  Nf6 {[%clk 0:02:59]} 7. O-O {[%clk 0:03:01]}  a6 {[%clk 0:02:59]} 8. Be3 {[%clk 0:03:02]}  Be7 {[%clk 0:02:57]} 9. f4 {[%clk 0:03:01]}  d6 {[%clk 0:02:57]} 10. Kh1 {[%clk 0:03:01]}  O-O {[%clk 0:02:57]} 11. a4 {[%clk 0:03:02]}  Bd7 {[%clk 0:02:55]} 12. Nb3 {[%clk 0:03:02]}  b6 {[%clk 0:02:54]} 13. Bf3 {[%clk 0:03:00]}  Bc8 {[%clk 0:02:49]} 14. g4 {[%clk 0:03:00]}  Nd7 {[%clk 0:02:48]} 15. g5 {[%clk 0:02:59]}  Bb7 {[%clk 0:02:47]} 16. Bg2 {[%clk 0:02:59]}  Rfe8 {[%clk 0:02:46]} 17. Rf3 {[%clk 0:02:57]}  g6 {[%clk 0:02:44]} 18. Rh3 {[%clk 0:02:57]}  Nb4 {[%clk 0:02:40]} 19. Qd2 {[%clk 0:02:47]}  Bf8 {[%clk 0:02:37]} 20. Rf1 {[%clk 0:02:44]}  Bg7 {[%clk 0:02:34]} 21. f5 {[%clk 0:02:14]}  Ne5 {[%clk 0:02:23]} 22. f6 {[%clk 0:02:00]}  Bf8 {[%clk 0:02:23]} 23. Qe2 {[%clk 0:01:39]}  Qc4 {[%clk 0:02:05]} 24. Qd1 {[%clk 0:01:11]}  Qc7 {[%clk 0:01:40]} 25. Bc1 {[%clk 0:01:09]}  Rad8 {[%clk 0:01:38]} 26. Qe1 {[%clk 0:00:44]}  Nxc2 {[%clk 0:01:31]} 27. Qh4 {[%clk 0:00:45]}  h6 {[%clk 0:01:31]} 28. gxh6 {[%clk 0:00:45]}  Kh7 {[%clk 0:01:32]} 29. Bf4 {[%clk 0:00:42]}  Nb4 {[%clk 0:01:13]} 30. Rd1 {[%clk 0:00:31]}  Nc4 {[%clk 0:00:59]} 31. Qf2 {[%clk 0:00:23]}  e5 {[%clk 0:00:55]} 32. Bg5 {[%clk 0:00:23]}  d5 {[%clk 0:00:40]} 33. exd5 {[%clk 0:00:24]}  Nd6 {[%clk 0:00:32]} 34. Be3 {[%clk 0:00:21]}  Nc4 {[%clk 0:00:29]} 35. Bg5 {[%clk 0:00:19]}  Bc8 {[%clk 0:00:29]} 36. Rh4 {[%clk 0:00:17]}  Bf5 {[%clk 0:00:21]} 37. Bf1 {[%clk 0:00:12]}  Nd6 {[%clk 0:00:18]} 38. Rxb4 {[%clk 0:00:11]}  e4 {[%clk 0:00:17]} 39. Nd4 {[%clk 0:00:10]}  e3 {[%clk 0:00:16]} 40. Bxe3 {[%clk 0:00:10]}  Ne4 {[%clk 0:00:16]} 41. Nxe4 {[%clk 0:00:09]}  Bxe4+ {[%clk 0:00:16]} 42. Bg2 {[%clk 0:00:08]}  Bxb4 {[%clk 0:00:17]} 43. Nc6 {[%clk 0:00:08]}  Qxc6 {[%clk 0:00:15]} 44. Bxe4 {[%clk 0:00:09]}  Qxa4 {[%clk 0:00:13]} 45. Bc2 {[%clk 0:00:09]}  Qd7 {[%clk 0:00:12]} 46. Bxb6 {[%clk 0:00:08]}  Rc8 {[%clk 0:00:11]} 47. Bb1 {[%clk 0:00:08]}  Bd6 {[%clk 0:00:11]} 48. Rg1 {[%clk 0:00:08]}  Re5 {[%clk 0:00:10]} 49. Qg2 {[%clk 0:00:06]}  Rg8 {[%clk 0:00:09]} 50. Bd4 {[%clk 0:00:05]}  Rh5 {[%clk 0:00:09]} 51. Re1 {[%clk 0:00:04]}  Rxh2+ {[%clk 0:00:09]} 52. Qxh2 {[%clk 0:00:05]}  Bxh2 {[%clk 0:00:09]} 53. Kxh2 {[%clk 0:00:06]}  Qxd5 {[%clk 0:00:10]} 54. Bc3 {[%clk 0:00:07]}  Qh5+ {[%clk 0:00:09]} 55. Kg3 {[%clk 0:00:08]}  Qg5+ {[%clk 0:00:09]} 56. Kf3 {[%clk 0:00:08]}  Qh5+ {[%clk 0:00:07]} 57. Kf2 {[%clk 0:00:08]}  Qh2+ {[%clk 0:00:05]} 58. Kf3 {[%clk 0:00:08]}  Qh3+ {[%clk 0:00:05]} 59. Kf2 {[%clk 0:00:09]}  Qh4+ {[%clk 0:00:05]} 60. Kf3 {[%clk 0:00:09]}  Rd8 {[%clk 0:00:05]} 61. Be4 {[%clk 0:00:08]}  Qh5+ {[%clk 0:00:05]} 62. Kf2 {[%clk 0:00:08]}  Rd1 {[%clk 0:00:05]} 63. Re3 {[%clk 0:00:08]}  Qh2+ {[%clk 0:00:05]} 64. Kf3 {[%clk 0:00:08]}  Rf1+ {[%clk 0:00:05]} 65. Kg4 {[%clk 0:00:09]}  Rf4+ {[%clk 0:00:05]} 66. Kg5 {[%clk 0:00:09]}  Qh4# {[%clk 0:00:06]} 0-1


[Site "https://www.chess.com"]

[Event "Titled Tuesday Blitz January 25 2022"]
[White "Sychev, Klementy"]
[Black "Costachi, Mihnea"]
[WhiteFideId "4114060"]
[BlackFideId "1217518"]
[WhiteElo "2564"]
[BlackElo "2464"]
[Result "1-0"]
[Round "05"]
[TimeControl "180+1"]
[Date "2022.01.26"]
[WhiteClock "0:00:04"]
[BlackClock "0:00:13"]

1. d4 {[%clk 0:02:59]}  Nf6 {[%clk 0:02:57]} 2. c4 {[%clk 0:02:59]}  c6 {[%clk 0:02:55]} 3. Bf4 {[%clk 0:02:58]}  d5 {[%clk 0:02:55]} 4. e3 {[%clk 0:02:57]}  g6 {[%clk 0:02:52]} 5. Nc3 {[%clk 0:02:57]}  Bg7 {[%clk 0:02:52]} 6. Nf3 {[%clk 0:02:57]}  O-O {[%clk 0:02:53]} 7. h3 {[%clk 0:02:57]}  Bf5 {[%clk 0:02:53]} 8. Be2 {[%clk 0:02:56]}  Ne4 {[%clk 0:02:51]} 9. O-O {[%clk 0:02:54]}  Nd7 {[%clk 0:02:48]} 10. Qb3 {[%clk 0:02:48]}  Nxc3 {[%clk 0:02:38]} 11. bxc3 {[%clk 0:02:47]}  dxc4 {[%clk 0:02:29]} 12. Qxb7 {[%clk 0:02:38]}  Nb6 {[%clk 0:02:01]} 13. Qxc6 {[%clk 0:02:23]}  Bd7 {[%clk 0:02:00]} 14. Qc5 {[%clk 0:02:18]}  Rc8 {[%clk 0:01:53]} 15. Qa3 {[%clk 0:02:13]}  Nd5 {[%clk 0:01:53]} 16. Be5 {[%clk 0:02:09]}  f6 {[%clk 0:01:49]} 17. Bg3 {[%clk 0:02:08]}  Bf5 {[%clk 0:01:33]} 18. Rfd1 {[%clk 0:01:51]}  Qd7 {[%clk 0:01:31]} 19. Nd2 {[%clk 0:01:40]}  Nb6 {[%clk 0:01:14]} 20. e4 {[%clk 0:01:38]}  Be6 {[%clk 0:01:14]} 21. Rab1 {[%clk 0:01:29]}  f5 {[%clk 0:01:14]} 22. exf5 {[%clk 0:01:23]}  Bxf5 {[%clk 0:01:09]} 23. Rb2 {[%clk 0:01:16]}  h5 {[%clk 0:00:59]} 24. Nf3 {[%clk 0:01:15]}  Be4 {[%clk 0:00:51]} 25. Ne5 {[%clk 0:00:52]}  Qd5 {[%clk 0:00:45]} 26. Qxa7 {[%clk 0:00:46]}  h4 {[%clk 0:00:32]} 27. Bh2 {[%clk 0:00:25]}  Na8 {[%clk 0:00:25]} 28. f3 {[%clk 0:00:13]}  Bd3 {[%clk 0:00:22]} 29. Qa4 {[%clk 0:00:04]}  Nb6 {[%clk 0:00:19]} 30. Qb5 {[%clk 0:00:03]}  Qxb5 {[%clk 0:00:19]} 31. Rxb5 {[%clk 0:00:03]}  Bxe2 {[%clk 0:00:19]} 32. Re1 {[%clk 0:00:03]}  Na4 {[%clk 0:00:20]} 33. Rb4 {[%clk 0:00:02]}  Nxc3 {[%clk 0:00:20]} 34. Nxg6 {[%clk 0:00:02]}  Bxd4+ {[%clk 0:00:19]} 35. Kh1 {[%clk 0:00:02]}  Rfd8 {[%clk 0:00:18]} 36. Nxe7+ {[%clk 0:00:01]}  Kf7 {[%clk 0:00:17]} 37. Nf5 {[%clk 0:00:02]}  Bd3 {[%clk 0:00:16]} 38. Rb7+ {[%clk 0:00:02]}  Kf6 {[%clk 0:00:17]} 39. Nxd4 {[%clk 0:00:02]}  Rxd4 {[%clk 0:00:16]} 40. Be5+ {[%clk 0:00:02]}  Kf5 {[%clk 0:00:16]} 41. Bxd4 {[%clk 0:00:03]}  Ne2 {[%clk 0:00:16]} 42. Rb5+ {[%clk 0:00:02]}  Kf4 {[%clk 0:00:15]} 43. Rc5 {[%clk 0:00:03]}  Nxd4 {[%clk 0:00:15]} 44. Rxc8 {[%clk 0:00:03]}  Ne2 {[%clk 0:00:14]} 45. Rd1 {[%clk 0:00:03]}  Nc3 {[%clk 0:00:13]} 46. Rxd3 {[%clk 0:00:02]}  cxd3 {[%clk 0:00:12]} 47. Rxc3 {[%clk 0:00:03]}  d2 {[%clk 0:00:13]} 48. Rd3 {[%clk 0:00:03]}  d1=Q+ {[%clk 0:00:13]} 49. Rxd1 {[%clk 0:00:04]} 1-0


[Site "https://www.chess.com"]

[Event "Titled Tuesday Blitz January 25 2022"]
[White "Urazayev, Arystanbek"]
[Black "Weishaeutel, Moritz"]
[WhiteFideId "13709810"]
[BlackFideId "12967300"]
[WhiteElo "2321"]
[BlackElo "2002"]
[Result "1-0"]
[Round "05"]
[TimeControl "180+1"]
[Date "2022.01.26"]
[WhiteClock "0:01:15"]
[BlackClock "0:00:01"]

1. c4 {[%clk 0:03:00]}  e6 {[%clk 0:03:00]} 2. Nf3 {[%clk 0:03:00]}  d5 {[%clk 0:03:00]} 3. e3 {[%clk 0:03:01]}  Nf6 {[%clk 0:03:01]} 4. Nc3 {[%clk 0:03:01]}  Be7 {[%clk 0:03:00]} 5. b3 {[%clk 0:03:02]}  O-O {[%clk 0:02:58]} 6. Bb2 {[%clk 0:03:02]}  c5 {[%clk 0:02:59]} 7. cxd5 {[%clk 0:03:02]}  exd5 {[%clk 0:02:58]} 8. d4 {[%clk 0:03:02]}  Nc6 {[%clk 0:02:59]} 9. Be2 {[%clk 0:03:03]}  Bg4 {[%clk 0:02:58]} 10. dxc5 {[%clk 0:03:00]}  Bxc5 {[%clk 0:02:59]} 11. O-O {[%clk 0:03:01]}  a6 {[%clk 0:02:52]} 12. Rc1 {[%clk 0:03:00]}  Ba7 {[%clk 0:02:51]} 13. Na4 {[%clk 0:03:01]}  Re8 {[%clk 0:02:35]} 14. Nc5 {[%clk 0:02:59]}  Qe7 {[%clk 0:02:33]} 15. Bxf6 {[%clk 0:02:35]}  Qxf6 {[%clk 0:02:29]} 16. Qxd5 {[%clk 0:02:35]}  Rad8 {[%clk 0:02:19]} 17. Qc4 {[%clk 0:02:35]}  Bxf3 {[%clk 0:02:14]} 18. Bxf3 {[%clk 0:02:35]}  Ne5 {[%clk 0:02:14]} 19. Qe2 {[%clk 0:02:36]}  Nxf3+ {[%clk 0:01:32]} 20. Qxf3 {[%clk 0:02:35]}  Qxf3 {[%clk 0:01:33]} 21. gxf3 {[%clk 0:02:36]}  Bxc5 {[%clk 0:01:27]} 22. Rxc5 {[%clk 0:02:37]}  Rd2 {[%clk 0:01:27]} 23. Ra1 {[%clk 0:02:24]}  Red8 {[%clk 0:01:20]} 24. Rc7 {[%clk 0:02:15]}  R2d7 {[%clk 0:01:20]} 25. Rac1 {[%clk 0:02:12]}  g6 {[%clk 0:01:20]} 26. Kg2 {[%clk 0:02:05]}  Rxc7 {[%clk 0:01:15]} 27. Rxc7 {[%clk 0:02:05]}  Rd2 {[%clk 0:01:15]} 28. a4 {[%clk 0:02:03]}  Rb2 {[%clk 0:01:04]} 29. Rxb7 {[%clk 0:02:03]}  a5 {[%clk 0:00:50]} 30. f4 {[%clk 0:02:00]}  h5 {[%clk 0:00:50]} 31. h4 {[%clk 0:02:00]}  Kg7 {[%clk 0:00:47]} 32. Rb5 {[%clk 0:02:00]}  Kf6 {[%clk 0:00:46]} 33. Kf3 {[%clk 0:02:00]}  Ke6 {[%clk 0:00:45]} 34. Ke4 {[%clk 0:02:00]}  Rxf2 {[%clk 0:00:36]} 35. Rxa5 {[%clk 0:02:00]}  Rh2 {[%clk 0:00:37]} 36. Ra8 {[%clk 0:01:59]}  Rxh4 {[%clk 0:00:37]} 37. a5 {[%clk 0:02:00]}  Rh1 {[%clk 0:00:34]} 38. b4 {[%clk 0:01:50]}  Rb1 {[%clk 0:00:27]} 39. Rb8 {[%clk 0:01:47]}  Ra1 {[%clk 0:00:21]} 40. Rb6+ {[%clk 0:01:45]}  Kd7 {[%clk 0:00:18]} 41. a6 {[%clk 0:01:46]}  h4 {[%clk 0:00:15]} 42. Kf3 {[%clk 0:01:46]}  f5 {[%clk 0:00:10]} 43. Rxg6 {[%clk 0:01:44]}  Ra2 {[%clk 0:00:09]} 44. b5 {[%clk 0:01:30]}  h3 {[%clk 0:00:04]} 45. Rh6 {[%clk 0:01:30]}  h2 {[%clk 0:00:03]} 46. Kg3 {[%clk 0:01:29]}  Kc7 {[%clk 0:00:02]} 47. Rxh2 {[%clk 0:01:28]}  Ra3 {[%clk 0:00:03]} 48. Rh7+ {[%clk 0:01:28]}  Kb6 {[%clk 0:00:03]} 49. Rb7+ {[%clk 0:01:28]}  Kc5 {[%clk 0:00:02]} 50. Kf3 {[%clk 0:01:28]}  Kc4 {[%clk 0:00:01]} 51. a7 {[%clk 0:01:29]}  Kd3 {[%clk 0:00:01]} 52. b6 {[%clk 0:01:29]}  Kd2 {[%clk 0:00:02]} 53. Rd7+ {[%clk 0:01:29]}  Ke1 {[%clk 0:00:02]} 54. Rd8 {[%clk 0:01:19]}  Ra2 {[%clk 0:00:02]} 55. a8=Q {[%clk 0:01:16]}  Ra6 {[%clk 0:00:01]} 56. Rd1+ {[%clk 0:01:15]} 1-0


[Site "https://www.chess.com"]

[Event "Titled Tuesday Blitz January 25 2022"]
[White "Vasquez Schroeder, Rodrigo"]
[Black "Garriga Cazorla, Pere"]
[WhiteFideId "3400042"]
[BlackFideId "32011601"]
[WhiteElo "2568"]
[BlackElo "2458"]
[Result "1-0"]
[Round "05"]
[TimeControl "180+1"]
[Date "2022.01.26"]
[WhiteClock "0:02:24"]
[BlackClock "0:01:17"]

1. e4 {[%clk 0:03:00]}  c5 {[%clk 0:02:58]} 2. Nf3 {[%clk 0:02:59]}  d6 {[%clk 0:02:57]} 3. d4 {[%clk 0:02:59]}  cxd4 {[%clk 0:02:58]} 4. Nxd4 {[%clk 0:02:59]}  Nf6 {[%clk 0:02:59]} 5. Nc3 {[%clk 0:03:00]}  a6 {[%clk 0:02:59]} 6. Bg5 {[%clk 0:03:00]}  Nbd7 {[%clk 0:02:56]} 7. Bc4 {[%clk 0:02:59]}  Qb6 {[%clk 0:02:53]} 8. Bb3 {[%clk 0:02:58]}  e6 {[%clk 0:02:53]} 9. Bxf6 {[%clk 0:02:59]}  Nxf6 {[%clk 0:02:53]} 10. Qd2 {[%clk 0:02:59]}  Qc7 {[%clk 0:02:52]} 11. O-O-O {[%clk 0:02:56]}  b5 {[%clk 0:02:42]} 12. a3 {[%clk 0:02:56]}  Be7 {[%clk 0:02:39]} 13. g4 {[%clk 0:02:49]}  g6 {[%clk 0:01:47]} 14. g5 {[%clk 0:02:43]}  Nd7 {[%clk 0:01:47]} 15. Bxe6 {[%clk 0:02:39]}  fxe6 {[%clk 0:01:47]} 16. Nxe6 {[%clk 0:02:40]}  Qc4 {[%clk 0:01:33]} 17. Nd5 {[%clk 0:02:32]}  Ra7 {[%clk 0:01:30]} 18. b3 {[%clk 0:02:27]}  Qxe4 {[%clk 0:01:19]} 19. Rhe1 {[%clk 0:02:26]}  Qf5 {[%clk 0:01:17]} 20. Ng7+ {[%clk 0:02:24]} 1-0


[Site "https://www.chess.com"]

[Event "Titled Tuesday Blitz January 25 2022"]
[White "Vusatiuk, Vladimir"]
[Black "Yuan, Qingyu"]
[WhiteFideId "14118610"]
[BlackFideId "8609772"]
[WhiteElo "2157"]
[BlackElo "2359"]
[Result "1-0"]
[Round "05"]
[TimeControl "180+1"]
[Date "2022.01.26"]
[WhiteClock "0:00:20"]
[BlackClock "0:00:04"]

1. d4 {[%clk 0:02:50]}  d5 {[%clk 0:02:59]} 2. c4 {[%clk 0:02:50]}  e6 {[%clk 0:02:59]} 3. Nc3 {[%clk 0:02:50]}  Nf6 {[%clk 0:03:00]} 4. cxd5 {[%clk 0:02:50]}  exd5 {[%clk 0:03:00]} 5. Bg5 {[%clk 0:02:50]}  c6 {[%clk 0:02:59]} 6. e3 {[%clk 0:02:50]}  h6 {[%clk 0:02:59]} 7. Bh4 {[%clk 0:02:48]}  Be7 {[%clk 0:03:00]} 8. Bd3 {[%clk 0:02:48]}  O-O {[%clk 0:03:00]} 9. Nf3 {[%clk 0:02:48]}  Ne4 {[%clk 0:03:00]} 10. Bxe7 {[%clk 0:02:46]}  Qxe7 {[%clk 0:03:00]} 11. Bxe4 {[%clk 0:02:47]}  dxe4 {[%clk 0:03:00]} 12. Nd2 {[%clk 0:02:47]}  f5 {[%clk 0:02:50]} 13. Rb1 {[%clk 0:02:47]}  Be6 {[%clk 0:02:45]} 14. b4 {[%clk 0:02:47]}  Nd7 {[%clk 0:02:29]} 15. O-O {[%clk 0:02:46]}  b5 {[%clk 0:02:23]} 16. a4 {[%clk 0:02:42]}  a5 {[%clk 0:02:12]} 17. d5 {[%clk 0:01:58]}  Bxd5 {[%clk 0:01:47]} 18. axb5 {[%clk 0:01:49]}  axb4 {[%clk 0:01:43]} 19. Nxd5 {[%clk 0:01:49]}  cxd5 {[%clk 0:01:43]} 20. Qb3 {[%clk 0:01:49]}  Rfb8 {[%clk 0:01:25]} 21. Qxd5+ {[%clk 0:01:47]}  Qf7 {[%clk 0:01:08]} 22. Qxf7+ {[%clk 0:01:41]}  Kxf7 {[%clk 0:01:09]} 23. Rxb4 {[%clk 0:01:42]}  Nc5 {[%clk 0:01:07]} 24. b6 {[%clk 0:01:29]}  Nd3 {[%clk 0:00:41]} 25. Rb5 {[%clk 0:01:29]}  Ke6 {[%clk 0:00:38]} 26. b7 {[%clk 0:01:15]}  Ra2 {[%clk 0:00:33]} 27. Nb3 {[%clk 0:01:09]}  Kd6 {[%clk 0:00:29]} 28. Nd4 {[%clk 0:01:07]}  g6 {[%clk 0:00:20]} 29. Rb6+ {[%clk 0:01:08]}  Kc7 {[%clk 0:00:20]} 30. Rxg6 {[%clk 0:01:08]}  Rxb7 {[%clk 0:00:19]} 31. Rg7+ {[%clk 0:01:09]}  Kb8 {[%clk 0:00:15]} 32. Rxb7+ {[%clk 0:01:10]}  Kxb7 {[%clk 0:00:15]} 33. Nxf5 {[%clk 0:01:11]}  Ra6 {[%clk 0:00:10]} 34. Rb1+ {[%clk 0:01:03]}  Kc7 {[%clk 0:00:10]} 35. Ng3 {[%clk 0:00:57]}  Ra4 {[%clk 0:00:09]} 36. h4 {[%clk 0:00:54]}  Kc6 {[%clk 0:00:08]} 37. h5 {[%clk 0:00:54]}  Kc5 {[%clk 0:00:07]} 38. Nf5 {[%clk 0:00:49]}  Ra6 {[%clk 0:00:04]} 39. g4 {[%clk 0:00:50]}  Kd5 {[%clk 0:00:03]} 40. Rb5+ {[%clk 0:00:48]}  Kc4 {[%clk 0:00:03]} 41. Rb1 {[%clk 0:00:46]}  Kc3 {[%clk 0:00:04]} 42. Kg2 {[%clk 0:00:42]}  Ra2 {[%clk 0:00:03]} 43. Rf1 {[%clk 0:00:42]}  Ra6 {[%clk 0:00:03]} 44. Kg3 {[%clk 0:00:42]}  Kd2 {[%clk 0:00:03]} 45. Rb1 {[%clk 0:00:36]}  Ke2 {[%clk 0:00:03]} 46. Rb8 {[%clk 0:00:34]}  Rf6 {[%clk 0:00:02]} 47. Ra8 {[%clk 0:00:31]}  Rb6 {[%clk 0:00:02]} 48. Ra2+ {[%clk 0:00:30]}  Ke1 {[%clk 0:00:02]} 49. Ra4 {[%clk 0:00:27]}  Kf1 {[%clk 0:00:01]} 50. Rxe4 {[%clk 0:00:27]}  Nxf2 {[%clk 0:00:01]} 51. Rf4 {[%clk 0:00:27]}  Rb2 {[%clk 0:00:02]} 52. Nxh6 {[%clk 0:00:21]}  Kg1 {[%clk 0:00:02]} 53. Rxf2 {[%clk 0:00:20]}  Rxf2 {[%clk 0:00:02]} 54. Nf5 {[%clk 0:00:20]}  Re2 {[%clk 0:00:02]} 55. h6 {[%clk 0:00:20]}  Rg2+ {[%clk 0:00:02]} 56. Kf4 {[%clk 0:00:20]}  Kf2 {[%clk 0:00:02]} 57. g5 {[%clk 0:00:19]}  Ke2 {[%clk 0:00:02]} 58. h7 {[%clk 0:00:19]}  Rh2 {[%clk 0:00:03]} 59. g6 {[%clk 0:00:19]}  Kd3 {[%clk 0:00:04]} 60. g7 {[%clk 0:00:20]}  Rxh7 {[%clk 0:00:04]} 61. g8=Q {[%clk 0:00:20]}  Rb7 {[%clk 0:00:04]} 62. Qd5+ {[%clk 0:00:20]} 1-0


[Site "https://www.chess.com"]